bitfinex/quotes_BTCUSD_20260310
["timestamp","ask_amount","ask_price","bid_price","bid_amount"]
[1773161876965,0.18794341,71223.0,71214.0,0.0716506]
[1773161877130,0.03,71221.0,71214.0,0.00144]
[1773161878551,0.18808071,71221.0,71214.0,0.00144]
[1773161879094,0.26545737,71228.0,71214.0,0.07165067]
[1773161879289,0.03,71224.0,71214.0,0.00144]
[1773161879436,0.03,71222.0,71214.0,0.00144]
[1773161879640,0.03,71220.0,71213.0,0.00022]
[1773161879960,0.13015875,71227.0,71214.0,0.00144]
[1773161880488,0.07019512,71231.0,71214.0,0.00144]
[1773161880697,0.07579428,71233.0,71215.0,0.03855667]
[1773161880866,0.03,71232.0,71215.0,0.03855667]
[1773161881074,0.03,71230.0,71216.0,0.07123505]
[1773161881276,0.03,71226.0,71217.0,0.00144]
[1773161881476,0.03,71224.0,71217.0,0.00144]
[1773161881914,0.14598648,71233.0,71218.0,0.00102699]
[1773161882049,0.0701922,71233.0,71218.0,0.00102699]
[1773161882249,0.0701922,71233.0,71216.0,0.07020795]
[1773161882250,0.07579428,71232.0,71219.0,0.00144]
[1773161882508,0.03,71229.0,71219.0,0.00144]
[1773161882709,0.03,71227.0,71219.0,0.00144]
[1773161882940,0.00720235,71226.0,71219.0,0.00144]
[1773161883140,0.03,71224.0,71219.0,0.00144]
[1773161883298,0.03720235,71224.0,71219.0,0.00144]
[1773161883501,0.03,71224.0,71219.0,0.00144]
[1773161883910,0.03,71224.0,71220.0,0.00144]
[1773161884117,0.00720235,71225.0,71220.0,0.00144]
[1773161884118,0.03,71223.0,71220.0,0.00144]
[1773161885124,0.03,71222.0,71214.0,0.00011271]
[1773161885324,0.03,71222.0,71215.0,0.00144]
[1773161885704,0.12437717,71222.0,71216.0,0.00144]
[1773161886106,0.07020105,71224.0,71203.0,0.07022097]
[1773161886107,0.03720235,71221.0,71203.0,0.07022097]
[1773161886334,0.03720235,71221.0,71198.0,0.07044572]
[1773161886335,0.03,71215.0,71198.0,0.00022]
[1773161886499,0.03,71211.0,71199.0,0.00144]
[1773161886703,0.03,71205.0,71198.0,0.00059612]
[1773161886910,0.14801564,71216.0,71198.0,0.00059612]
[1773161886911,0.09437717,71215.0,71199.0,0.00144]
[1773161887110,0.16461658,71214.0,71200.0,0.07022471]
[1773161887363,0.09440567,71213.0,71200.0,0.07022471]
[1773161887572,0.07020678,71219.0,71200.0,0.07022471]
[1773161887773,0.07020678,71219.0,71201.0,0.00144]
[1773161887774,0.09440567,71218.0,71201.0,0.00144]
[1773161887989,0.03,71211.0,71201.0,0.00144]
[1773161888756,0.09440567,71228.0,71202.0,0.00144]
[1773161888952,0.03,71227.0,71203.0,0.00723944]
[1773161889153,0.03,71223.0,71206.0,0.07805473]
[1773161889403,0.03,71223.0,71207.0,0.00033227]
[1773161889574,0.03,71223.0,71208.0,0.07805473]
[1773161889986,0.03,71223.0,71209.0,0.00144]
[1773161890271,0.03,71223.0,71209.0,0.07982698]
[1773161890519,0.03,71223.0,71209.0,0.07949473]
[1773161891130,0.00579944,71222.0,71210.0,0.07021485]
[1773161891528,0.03,71221.0,71211.0,0.00144]
[1773161891734,0.00579944,71220.0,71211.0,0.00144]
[1773161891887,0.03579944,71221.0,71211.0,0.00144]
[1773161892089,0.03,71221.0,71211.0,0.00144]
[1773161892732,0.03,71221.0,71212.0,0.00144]
[1773161893223,0.03,71221.0,71213.0,0.07021189]
[1773161893862,0.07579428,71222.0,71213.0,0.07021189]
[1773161894066,0.03,71224.0,71213.0,0.07021189]
[1773161894272,0.03,71224.0,71214.0,0.07805473]
[1773161895035,0.001,71229.0,71214.0,0.07805473]
[1773161895239,0.0002,71226.0,71216.0,0.07805473]
[1773161895678,0.14009237,71235.0,71216.0,0.08385506]
[1773161895888,0.14009237,71236.0,71216.0,0.08385506]
[1773161896099,0.14009237,71239.0,71216.0,0.08385506]
[1773161896313,0.03,71239.0,71216.0,0.08385506]
[1773161896541,0.03,71239.0,71220.0,0.15766203]
[1773161896746,0.14009237,71245.0,71222.0,0.07805473]
[1773161896947,0.07017844,71247.0,71222.0,0.07805473]
[1773161897144,0.14009237,71247.0,71223.0,0.07020204]
[1773161897348,0.14009237,71247.0,71224.0,0.07805473]
[1773161897575,0.0359188,71244.0,71224.0,0.07805473]
[1773161897755,0.03603155,71244.0,71224.0,0.07805473]
[1773161897927,0.21027076,71247.0,71224.0,0.07805473]
[1773161898126,0.2102711,71247.0,71224.0,0.07816748]
[1773161898330,0.14009237,71246.0,71224.0,0.07816748]
[1773161898569,0.17009237,71248.0,71224.0,0.07816748]
[1773161898768,0.03,71248.0,71224.0,0.07816748]
[1773161898934,0.17009237,71248.0,71224.0,0.07816748]
[1773161899128,0.001,71239.0,71224.0,0.07816748]
[1773161899339,0.001,71239.0,71226.0,0.07793683]
[1773161899535,0.001,71239.0,71228.0,0.07793683]
[1773161899841,0.17009237,71248.0,71228.0,0.07793683]
[1773161900057,0.14009237,71247.0,71228.0,0.07793683]
[1773161900264,0.03,71246.0,71228.0,0.07793683]
[1773161901389,0.03,71248.0,71228.0,0.07793683]
[1773161901565,0.03,71248.0,71229.0,0.07019612]
[1773161901763,0.03,71248.0,71230.0,0.07793683]
[1773161902185,0.03,71247.0,71230.0,0.07793683]
[1773161903240,0.03,71246.0,71228.0,0.05455639]
[1773161903438,0.03,71246.0,71230.0,0.07793683]
[1773161903600,0.03,71246.0,71231.0,0.07019415]
[1773161903800,0.03,71246.0,71232.0,0.07793683]
[1773161904003,0.03,71246.0,71233.0,0.07937683]
[1773161904219,0.00023,71250.0,71233.0,0.07937683]
[1773161904220,0.03,71245.0,71233.0,0.07937683]
[1773161905401,0.11236397,71250.0,71233.0,0.07937683]
[1773161905641,0.24049801,71250.0,71234.0,0.14812803]
[1773161905844,0.24049801,71250.0,71233.0,0.0716312]
[1773161905845,0.03,71246.0,71233.0,0.00144]
[1773161906044,0.03,71242.0,71234.0,0.00144]
[1773161906246,0.03,71236.0,71235.0,0.00144]
[1773161906447,0.11213397,71236.0,71235.0,0.00144]
[1773161906891,0.03,71236.0,71224.0,0.07031375]
[1773161907091,0.14009237,71249.0,71225.0,0.00144]
[1773161907092,0.03,71232.0,71225.0,0.00144]
[1773161907352,0.03,71232.0,71225.0,0.07164007]
[1773161907547,0.08213397,71243.0,71226.0,0.08178601]
[1773161907758,0.07040564,71250.0,71226.0,0.08178601]
[1773161907759,0.14009237,71245.0,71228.0,0.07793683]
[1773161908005,0.08213397,71249.0,71230.0,0.07793683]
[1773161908201,0.03,71248.0,71232.0,0.07793683]
[1773161908409,0.08213397,71249.0,71227.0,0.07019809]
[1773161908410,0.03,71244.0,71228.0,0.00525273]
[1773161908598,0.11213397,71242.0,71233.0,0.00144]
[1773161909939,0.11213397,71242.0,71234.0,0.0701912]
[1773161910313,0.03,71248.0,71234.0,0.0701912]
[1773161910524,0.11213397,71246.0,71234.0,0.0701912]
[1773161911492,0.03,71245.0,71234.0,0.0701912]
[1773161913171,0.03,71244.0,71234.0,0.0701912]
[1773161913411,0.03,71244.0,71235.0,0.00144]
[1773161914240,0.03,71244.0,71236.0,0.07018923]
[1773161914446,0.03,71244.0,71237.0,0.00144]
[1773161915055,0.03,71243.0,71237.0,0.00144]
[1773161916140,0.001,71245.0,71238.0,0.07018725]
[1773161916511,0.001,71245.0,71237.0,0.07162725]
[1773161917516,0.031,71245.0,71237.0,0.0716282]
[1773161918544,0.03,71244.0,71237.0,0.0716282]
[1773161918771,0.001,71243.0,71237.0,0.0716282]
[1773161922219,0.001,71243.0,71238.0,0.00144]
[1773161922829,0.001,71243.0,71238.0,0.07162724]
[1773161924151,0.031,71243.0,71238.0,0.07162724]
[1773161924390,0.001,71245.0,71240.0,0.06375571]
[1773161924573,0.001,71245.0,71240.0,0.05732614]
[1773161924800,0.001,71245.0,71238.0,0.07162724]
[1773161925349,0.001,71245.0,71238.0,0.00144]
[1773161925567,0.03,71243.0,71234.0,0.07019084]
[1773161925829,0.03,71241.0,71235.0,0.00144]
[1773161926380,0.03,71241.0,71236.0,0.07018923]
[1773161926584,0.03,71241.0,71237.0,0.00144]
[1773161926782,0.001,71245.0,71237.0,0.00144]
[1773161928313,0.001,71245.0,71238.0,0.07018725]
[1773161928878,0.001,71245.0,71237.0,0.07162785]
[1773161929048,0.0012,71245.0,71237.0,0.07162785]
[1773161929462,0.03,71240.0,71225.0,0.07019977]
[1773161929801,0.03,71240.0,71226.0,0.00166]
[1773161929987,0.03,71240.0,71226.0,0.07663151]
[1773161930577,0.03,71240.0,71227.0,0.1451696]
[1773161930788,0.03,71238.0,71227.0,0.1451696]
[1773161931880,0.03,71239.0,71227.0,0.1451696]
[1773161932498,0.03,71235.0,71227.0,0.07019809]
[1773161932754,0.10620356,71235.0,71228.0,0.00144]
[1773161932954,0.10620356,71235.0,71226.0,0.00022]
[1773161933178,0.03,71233.0,71229.0,0.00144]
[1773161933360,0.03,71231.0,71229.0,0.00144]
[1773161934455,0.03,71230.0,71226.0,0.07041906]
[1773161934659,0.03,71230.0,71227.0,0.00144]
[1773161934862,0.07620356,71236.0,71227.0,0.00144]
[1773161935061,0.07018926,71236.0,71227.0,0.00144]
[1773161935417,0.03,71235.0,71227.0,0.00144]
[1773161935626,0.03,71235.0,71228.0,0.07497151]
[1773161936488,0.07018237,71243.0,71228.0,0.07497151]
[1773161936489,0.03,71242.0,71228.0,0.07497151]
[1773161936693,0.03,71242.0,71229.0,0.07019612]
[1773161936900,0.03,71242.0,71230.0,0.00144]
[1773161937116,0.10018352,71242.0,71230.0,0.00144]
[1773161937730,0.03,71242.0,71231.0,0.07497151]
[1773161937970,0.03,71242.0,71232.0,0.00172858]
[1773161938170,0.03,71242.0,71233.0,0.07497151]
[1773161939289,0.10620356,71242.0,71231.0,0.07019402]
[1773161939527,0.10620356,71242.0,71232.0,0.00144]
[1773161939895,0.10620356,71242.0,71233.0,0.00144]
[1773161940295,0.17638717,71242.0,71233.0,0.00144]
[1773161940559,0.31667573,71242.0,71233.0,0.00144]
[1773161943505,0.24649212,71242.0,71233.0,0.00144]
[1773161943736,0.03,71240.0,71233.0,0.00144]
[1773161944428,0.03,71240.0,71233.0,0.00129214]
[1773161944634,0.03,71238.0,71234.0,0.00144]
[1773161944833,0.10620356,71238.0,71235.0,0.00144]
[1773161945092,0.03,71238.0,71236.0,0.00144]
[1773161945230,0.03,71238.0,71237.0,0.00144]
[1773161945438,0.14028856,71242.0,71229.0,0.07497151]
[1773161945642,0.03,71243.0,71230.0,0.00144]
[1773161946269,0.03,71241.0,71230.0,0.00144]
[1773161946676,0.001,71238.0,71230.0,0.00144]
[1773161946875,0.001,71238.0,71231.0,0.07019415]
[1773161947210,0.001,71238.0,71231.0,0.07004632]
[1773161947424,0.03,71240.0,71231.0,0.07004632]
[1773161948484,0.03,71242.0,71231.0,0.07004632]
[1773161949936,0.03,71242.0,71231.0,0.0698985]
[1773161951831,0.03,71242.0,71231.0,0.0701185]
[1773161952990,0.0302,71242.0,71231.0,0.0701185]
[1773161953483,0.0302,71242.0,71231.0,0.14509001]
[1773161953681,0.03,71241.0,71231.0,0.14509001]
[1773161953860,0.03,71241.0,71232.0,0.00144]
[1773161954068,0.03,71241.0,71233.0,0.07497151]
[1773161954581,0.03,71240.0,71233.0,0.07497151]
[1773161955204,0.03,71240.0,71233.0,0.07482367]
[1773161955596,0.0002,71242.0,71233.0,0.07019199]
[1773161955741,0.0002,71242.0,71234.0,0.07497151]
[1773161956146,0.10038339,71242.0,71234.0,0.07497151]
[1773161956346,0.0302,71242.0,71234.0,0.07497151]
[1773161957159,0.0012,71245.0,71236.0,0.07497151]
[1773161957608,0.0012,71245.0,71236.0,0.1451602]
[1773161958828,0.0012,71245.0,71236.0,0.14486456]
[1773161959031,0.0012,71245.0,71236.0,0.07467587]
[1773161959214,0.03,71244.0,71236.0,0.07467587]
[1773161960808,0.03,71244.0,71233.0,0.07019041]
[1773161960809,0.03,71243.0,71233.0,0.07019142]
[1773161961014,0.03,71243.0,71234.0,0.07099027]
[1773161961850,0.0012,71245.0,71234.0,0.07099027]
[1773161962252,0.0012,71245.0,71236.0,0.07099027]
[1773161962660,0.14062013,71250.0,71236.0,0.07099027]
[1773161962860,0.18263433,71257.0,71238.0,0.07099027]
[1773161962861,0.03,71256.0,71238.0,0.07099027]
[1773161963061,0.03,71256.0,71240.0,0.07099027]
[1773161964654,0.07015767,71270.0,71246.0,0.0525709]
[1773161964875,0.07015997,71266.0,71248.0,0.07330294]
[1773161965775,0.10016016,71266.0,71248.0,0.07330294]
[1773161966009,0.10027291,71266.0,71248.0,0.07330294]
[1773161966924,0.10027291,71266.0,71249.0,0.07017642]
[1773161967229,0.03011275,71266.0,71250.0,0.07330294]
[1773161967430,0.10027272,71266.0,71250.0,0.07330294]
[1773161968926,0.03,71265.0,71250.0,0.07330294]
[1773161969114,0.03,71265.0,71252.0,0.07330294]
[1773161969318,0.10016095,71265.0,71253.0,0.07474294]
[1773161969733,0.03,71265.0,71253.0,0.07474294]
[1773161969957,0.10016084,71265.0,71253.0,0.07474294]
[1773161970158,0.03,71265.0,71253.0,0.07474294]
[1773161970362,0.03,71264.0,71253.0,0.07474294]
[1773161970775,0.07597384,71272.0,71253.0,0.07474294]
[1773161970947,0.07597384,71272.0,71253.0,0.07485569]
[1773161971152,0.0002,71266.0,71255.0,0.07330294]
[1773161971935,0.03,71271.0,71255.0,0.07330294]
[1773161972137,0.00023,71275.0,71255.0,0.07330294]
[1773161973163,0.00023,71275.0,71257.0,0.07330294]
[1773161973489,0.00023,71275.0,71258.0,0.00144]
[1773161973490,0.03,71269.0,71258.0,0.00144]
[1773161974284,0.03,71269.0,71258.0,0.07474294]
[1773161976540,0.10015733,71269.0,71258.0,0.07474294]
[1773161978587,0.03,71269.0,71258.0,0.14491047]
[1773161978786,0.03,71269.0,71259.0,0.08256857]
[1773161979324,0.07014139,71285.0,71259.0,0.07330294]
[1773161979538,0.07014684,71280.0,71260.0,0.07099027]
[1773161979709,0.07014697,71279.0,71260.0,0.07099027]
[1773161980388,0.0002,71273.0,71262.0,0.07099027]
[1773161980596,0.0002,71273.0,71263.0,0.07016263]
[1773161980788,0.0002,71273.0,71264.0,0.07243027]
[1773161980998,0.07014697,71279.0,71264.0,0.07243027]
[1773161981223,1e-08,71291.0,71269.0,0.0525709]
[1773161981550,1e-08,71291.0,71264.0,0.00144]
[1773161981551,0.00585,71300.0,71276.0,0.07845691]
[1773161981552,0.0525709,71290.0,71276.0,0.07845691]
[1773161981723,0.0525709,71290.0,71277.0,0.00144]
[1773161981926,0.0525709,71290.0,71277.0,0.07989691]
[1773161982133,0.0525709,71290.0,71275.0,0.00023]
[1773161982303,0.0525709,71290.0,71278.0,0.07845691]
[1773161982503,0.0525709,71300.0,71278.0,0.07845691]
[1773161982703,0.07012721,71299.0,71279.0,0.14860379]
[1773161983516,0.07012721,71299.0,71280.0,0.07845691]
[1773161983718,0.07012721,71299.0,71281.0,0.00144]
[1773161984269,0.07012721,71299.0,71282.0,0.07845691]
[1773161984664,0.07012721,71299.0,71277.0,0.07014877]
[1773161984858,0.0525709,71292.0,71278.0,0.00144]
[1773161985060,0.0525709,71292.0,71279.0,0.00144]
[1773161985937,0.0525709,71292.0,71280.0,0.00144]
[1773161987340,0.07013508,71291.0,71280.0,0.00144]
[1773161989443,0.03,71297.0,71280.0,0.00144]
[1773161989644,0.03,71274.0,71273.0,0.14347665]
[1773161989842,0.60798976,71275.0,71274.0,0.07332583]
[1773161990388,0.01718509,71299.0,71274.0,0.07332583]
[1773161990594,0.01718509,71299.0,71273.0,0.07207201]
[1773161990595,0.10041965,71307.0,71290.0,0.06331166]
[1773161990839,0.10079563,71307.0,71292.0,0.07332583]
[1773161991438,0.03,71305.0,71292.0,0.07013385]
[1773161991642,0.03,71305.0,71293.0,0.07332583]
[1773161992437,0.00037598,71307.0,71293.0,0.07332583]
[1773161992601,0.03037598,71307.0,71293.0,0.07332583]
[1773161993482,0.03037598,71307.0,71292.0,0.07332583]
[1773161993650,0.10049619,71307.0,71293.0,0.07332583]
[1773161993851,0.03,71306.0,71293.0,0.07332583]
[1773161994837,0.03037598,71307.0,71293.0,0.07332583]
[1773161995237,0.10049537,71307.0,71293.0,0.07332583]
[1773161996090,0.03,71305.0,71294.0,0.00144]
[1773161996634,0.0302,71305.0,71294.0,0.00144]
[1773161997037,0.00856,71293.0,71292.0,0.07332583]
[1773161997336,0.00856,71293.0,71292.0,0.07476583]
[1773161998368,0.00856,71293.0,71283.0,0.0701429]
[1773161998580,0.03856,71293.0,71284.0,0.07014196]
[1773161998780,0.03856,71293.0,71285.0,0.00144]
[1773161999193,0.03856,71293.0,71286.0,0.00144]
[1773161999402,0.03856,71293.0,71287.0,0.07332583]
[1773161999634,0.03,71292.0,71287.0,0.07332583]
[1773161999968,0.07032207,71305.0,71287.0,0.07332583]
[1773162000197,0.07032207,71305.0,71283.0,0.0701429]
[1773162000198,0.07041965,71304.0,71283.0,0.0701429]
[1773162000401,0.07041965,71304.0,71274.0,0.07015146]
[1773162000402,0.07041965,71302.0,71275.0,0.07060078]
[1773162000730,0.07012327,71303.0,71276.0,0.08348789]
[1773162000731,0.03,71295.0,71276.0,0.08348789]
[1773162000885,0.03,71293.0,71276.0,0.08348789]
[1773162001071,0.03,71293.0,71276.0,0.00872206]
[1773162001272,0.03,71291.0,71277.0,0.07476583]
[1773162001498,0.03,71291.0,71278.0,0.00872181]
[1773162002308,0.03,71291.0,71277.0,0.07476583]
[1773162002508,0.03,71291.0,71278.0,0.1434737]
[1773162002509,0.03,71290.0,71278.0,0.1434737]
[1773162002714,0.03,71290.0,71278.0,0.07840856]
[1773162002919,0.03,71288.0,71278.0,0.00826069]
[1773162003127,0.07012819,71298.0,71273.0,0.00048]
[1773162003128,0.07041965,71283.0,71273.0,0.00048]
[1773162003363,0.10041965,71280.0,71274.0,0.00144]
[1773162003777,0.03,71280.0,71273.0,0.07063237]
[1773162003986,0.03,71280.0,71274.0,0.00144]
[1773162004185,0.07041965,71298.0,71268.0,0.00144]
[1773162004317,0.07041965,71298.0,71269.0,0.00144]
[1773162004318,0.03,71286.0,71269.0,0.00144]
[1773162004528,0.03,71280.0,71270.0,0.00144]
[1773162004870,0.10041965,71280.0,71270.0,0.00144]
[1773162005076,0.10041965,71280.0,71270.0,0.50551402]
[1773162005280,0.07013901,71288.0,71271.0,0.07515958]
[1773162005579,0.03,71287.0,71271.0,0.07515958]
[1773162005800,0.10041965,71285.0,71271.0,0.07515958]
[1773162006201,0.03,71285.0,71274.0,0.00022]
[1773162006403,0.03,71285.0,71275.0,0.07332583]
[1773162006603,0.03,71285.0,71276.0,0.07158984]
[1773162006812,0.07013415,71292.0,71276.0,0.57749747]
[1773162007011,0.0002,71291.0,71278.0,0.07332583]
[1773162007210,0.0002,71291.0,71279.0,0.00043059]
[1773162007415,0.0002,71291.0,71280.0,0.07332583]
[1773162007979,0.0002,71291.0,71278.0,0.07332583]
[1773162009020,0.03,71290.0,71279.0,0.07014688]
[1773162009367,0.03,71290.0,71280.0,0.07332583]
[1773162009976,0.0002,71291.0,71281.0,0.57923314]
[1773162010175,0.0002,71291.0,71282.0,0.00144]
[1773162010370,0.0002,71291.0,71282.0,0.07476583]
[1773162010563,0.07012958,71297.0,71282.0,0.07476583]
[1773162010789,0.004,71299.0,71282.0,0.07476583]
[1773162011214,0.03,71297.0,71284.0,0.07332583]
[1773162012211,0.00037598,71298.0,71284.0,0.07332583]
[1773162012458,0.00037598,71298.0,71286.0,0.07332583]
[1773162012668,0.00037598,71298.0,71286.0,0.07317828]
[1773162013219,0.03,71297.0,71287.0,0.07013901]
[1773162013437,0.03,71297.0,71288.0,0.00144]
[1773162014279,0.03,71296.0,71288.0,0.00144]
[1773162014480,0.03,71296.0,71289.0,0.50392646]
[1773162014651,0.03,71296.0,71289.0,0.5037789]
[1773162014963,0.03,71296.0,71289.0,0.50363135]
[1773162015340,0.03037598,71298.0,71289.0,0.50363135]
[1773162016042,0.03037598,71298.0,71289.0,0.57376826]
[1773162016467,0.03,71297.0,71290.0,0.07332583]
[1773162017136,0.03,71297.0,71289.0,0.57376826]
[1773162017137,0.03,71297.0,71289.0,0.50363135]
[1773162017348,0.03,71297.0,71289.0,0.57376834]
[1773162017553,0.03,71296.0,71289.0,0.57376834]
[1773162018438,0.03,71296.0,71289.0,0.50363135]
[1773162018732,0.03,71295.0,71289.0,0.50363135]
[1773162018900,0.03,71295.0,71289.0,0.57376812]
[1773162019562,0.0002,71296.0,71289.0,0.57376812]
[1773162020080,0.03,71295.0,71290.0,0.00144]
[1773162021495,0.03,71293.0,71290.0,0.00144]
[1773162022238,0.03,71293.0,71280.0,0.22654508]
[1773162022445,0.03,71293.0,71281.0,0.00144]
[1773162022446,0.03,71289.0,71281.0,0.00144]
[1773162022797,0.03,71289.0,71280.0,0.1564]
[1773162023094,0.03,71289.0,71281.0,0.00144]
[1773162023477,0.03,71287.0,71281.0,0.00144]
[1773162025016,0.03,71287.0,71282.0,0.00144]
[1773162025419,0.03,71285.0,71282.0,0.00144]
[1773162025948,0.06846979,71286.0,71282.0,0.00144]
[1773162026997,0.06846979,71286.0,71277.0,0.07014881]
[1773162027195,0.06846979,71286.0,71276.0,0.07014977]
[1773162027397,0.06846979,71286.0,71277.0,0.00144]
[1773162027598,0.03,71290.0,71280.0,0.00022]
[1773162028034,0.03,71290.0,71281.0,0.00144]
[1773162028411,0.03,71290.0,71280.0,0.00022]
[1773162028639,0.03,71290.0,71281.0,0.00144]
[1773162029915,0.03,71288.0,71281.0,0.00144]
[1773162031463,0.03,71288.0,71280.0,0.00022]
[1773162031794,0.03,71288.0,71282.0,0.00144]
[1773162032015,0.03,71286.0,71282.0,0.00144]
[1773162032374,0.03,71286.0,71274.0,0.00022]
[1773162032580,0.03,71286.0,71220.0,0.92057997]
[1773162032581,0.03,71282.0,71260.0,0.07621961]
[1773162032784,0.07642171,71277.0,71261.0,0.00144]
[1773162033008,0.03,71276.0,71262.0,0.07621961]
[1773162033390,0.10642171,71276.0,71262.0,0.07621961]
[1773162033883,0.03,71274.0,71263.0,0.07016263]
[1773162034086,0.03,71274.0,71263.0,0.14638224]
[1773162034595,0.03,71274.0,71264.0,0.07621961]
[1773162036308,0.03,71272.0,71264.0,0.07621961]
[1773162037160,0.03,71272.0,71256.0,0.15648]
[1773162037372,0.07015279,71273.0,71250.0,0.00045]
[1773162037373,0.03,71260.0,71250.0,1e-08]
[1773162037602,0.03,71260.0,71251.0,0.00144]
[1773162038514,0.03,71259.0,71251.0,0.00144]
[1773162039518,0.03,71258.0,71251.0,0.00144]
[1773162040291,0.10642171,71251.0,71239.0,0.07018623]
[1773162040460,0.10642171,71251.0,71243.0,0.00144]
[1773162040761,0.03,71249.0,71243.0,0.00144]
[1773162042094,0.03,71249.0,71239.0,0.07018623]
[1773162042260,0.03,71249.0,71243.0,0.00144]
[1773162042463,0.03,71249.0,71244.0,0.00144]
[1773162042814,0.10017248,71253.0,71244.0,0.00144]
[1773162042987,0.47249469,71280.0,71245.0,0.07621961]
[1773162042988,0.07596676,71269.0,71245.0,0.07621961]
[1773162043286,0.05249941,71260.0,71245.0,0.07621961]
[1773162043745,0.07596676,71264.0,71245.0,0.07621961]
[1773162043920,0.03,71263.0,71245.0,0.07621961]
[1773162044161,0.03,71261.0,71245.0,0.07621961]
[1773162044746,0.03,71259.0,71246.0,0.14783898]
[1773162047131,0.07016756,71258.0,71246.0,0.14639898]
[1773162047345,0.03,71257.0,71247.0,0.00144]
[1773162047551,0.07015959,71267.0,71247.0,0.07359675]
[1773162048462,0.03,71266.0,71249.0,0.07215675]
[1773162048684,0.14419806,71269.0,71249.0,0.07215675]
[1773162048685,0.00011271,71269.0,71249.0,0.07215675]
[1773162048882,0.00562,71272.0,71249.0,0.07215675]
[1773162048883,0.07577427,71272.0,71249.0,0.07215675]
[1773162049081,0.07577427,71272.0,71249.0,0.07226946]
[1773162049280,0.07577427,71272.0,71251.0,0.16181247]
[1773162049522,0.03,71271.0,71252.0,0.07606703]
[1773162049730,0.07577427,71272.0,71253.0,0.00144]
[1773162049731,0.10588879,71268.0,71253.0,0.00144]
[1773162049905,0.03,71266.0,71251.0,0.07606703]
[1773162050105,0.03,71266.0,71254.0,0.00144]
[1773162050106,0.00733473,71265.0,71254.0,0.00144]
[1773162050517,0.00733473,71265.0,71255.0,0.00144]
[1773162050667,0.03,71266.0,71255.0,0.00144]
[1773162051798,0.03,71265.0,71256.0,0.07016952]
[1773162052860,0.03,71264.0,71256.0,0.07016952]
[1773162053400,0.07015752,71269.0,71257.0,0.07606703]
[1773162053653,0.07577421,71272.0,71257.0,0.07606703]
[1773162053856,0.03,71271.0,71257.0,0.07606703]
[1773162054273,0.10588879,71271.0,71257.0,0.07606703]
[1773162055790,0.03,71269.0,71258.0,0.07016756]
[1773162059621,0.1001568,71269.0,71258.0,0.07016756]
[1773162059824,0.03,71267.0,71256.0,0.00022]
[1773162059983,0.03,71265.0,71256.0,0.00022]
[1773162060182,0.08322352,71264.0,71249.0,0.00011271]
[1773162060387,0.03,71259.0,71250.0,0.00144]
[1773162060800,0.03,71259.0,71249.0,0.0702888]
[1773162060996,0.03,71259.0,71251.0,0.00144]
[1773162061399,0.03,71258.0,71252.0,0.00144]
[1773162062247,0.07588879,71267.0,71252.0,0.00144]
[1773162062569,0.03,71269.0,71253.0,0.07606703]
[1773162063366,0.07015688,71269.0,71255.0,0.16181247]
[1773162063570,0.07015574,71270.0,71256.0,0.07606703]
[1773162063798,0.07015562,71271.0,71256.0,0.07606703]
[1773162064225,0.07038086,71275.0,71256.0,0.07606703]
[1773162064424,0.03,71272.0,71256.0,0.07606703]
[1773162064769,0.0302,71272.0,71256.0,0.07606703]
[1773162064990,0.0302,71272.0,71254.0,0.07017149]
[1773162064991,0.03,71270.0,71254.0,0.07017149]
[1773162065196,0.03,71266.0,71256.0,0.001]
[1773162065397,0.03733473,71266.0,71256.0,0.001]
[1773162065897,0.03,71266.0,71257.0,0.07016854]
[1773162066298,0.03,71265.0,71257.0,0.07016854]
[1773162067432,0.07015613,71270.0,71257.0,0.07016854]
[1773162067945,0.07015613,71270.0,71256.0,0.14623557]
[1773162068147,0.14604492,71270.0,71256.0,0.14623557]
[1773162068350,0.00733473,71269.0,71256.0,0.14623557]
[1773162068500,0.03733473,71269.0,71256.0,0.14623557]
[1773162069140,0.03,71269.0,71256.0,0.14623557]
[1773162070242,0.03,71267.0,71256.0,0.14623557]
[1773162071636,0.03,71267.0,71256.0,0.07016854]
[1773162071809,0.03,71266.0,71257.0,0.07606703]
[1773162072390,0.03,71266.0,71258.0,0.07016756]
[1773162072843,0.07015834,71268.0,71258.0,0.07016756]
[1773162072844,0.03,71265.0,71258.0,0.14623459]
[1773162073729,0.03,71264.0,71258.0,0.14623459]
[1773162074312,0.03,71264.0,71257.0,0.07016818]
[1773162074557,0.07015647,71270.0,71258.0,0.07606703]
[1773162074770,0.03,71270.0,71258.0,0.07606703]
[1773162075149,0.03,71270.0,71259.0,0.00144]
[1773162075765,0.07035476,71272.0,71259.0,0.00144]
[1773162075981,0.03,71271.0,71259.0,0.00144]
[1773162076160,0.03,71265.0,71242.0,0.06879133]
[1773162076360,0.07588879,71254.0,71245.0,0.00144]
[1773162076585,0.03,71251.0,71242.0,0.06879133]
[1773162076838,0.10588879,71247.0,71242.0,0.06879133]
[1773162077031,0.10588879,71247.0,71245.0,0.00144]
[1773162077244,0.07016952,71256.0,71234.0,0.00022]
[1773162077245,0.03,71243.0,71234.0,0.00022]
[1773162077447,0.15758142,71252.0,71231.0,1e-08]
[1773162077448,0.03,71239.0,71231.0,1e-08]
[1773162077632,0.03,71239.0,71235.0,0.00144]
[1773162077633,0.10588879,71237.0,71235.0,0.00144]
[1773162078016,0.10588879,71237.0,71236.0,0.00144]
[1773162078215,0.10588879,71237.0,71236.0,0.00028993]
[1773162078614,0.10588879,71237.0,71236.0,0.00144]
[1773162078821,0.17607737,71237.0,71224.0,0.07020105]
[1773162079158,0.03,71235.0,71225.0,0.00144]
[1773162079940,0.03,71236.0,71225.0,0.00144]
[1773162080481,0.14607704,71237.0,71226.0,0.00144]
[1773162080482,0.10371448,71232.0,71226.0,0.00144]
[1773162080844,0.03,71232.0,71226.0,0.00144]
[1773162081482,0.03,71233.0,71226.0,0.00144]